fUST/lending_fUST_20250430
["ID","MTS","AMOUNT","RATE_DAILY","PERIOD"]
[359450366,1746024551432,-545.0,0.00034202,2]
[359450367,1746024551453,-403.0,0.00034202,2]
[359450368,1746024551475,-2245.0,0.00034202,2]
[359450369,1746024551504,-707.0,0.00034202,2]
[359450370,1746024551525,-294.36,0.00034327,2]
[359450371,1746024551547,-3000.0,0.00034328,60]
[359450372,1746024551571,-3000.0,0.00034876,60]
[359450373,1746024551594,-1619.12543116,0.00035,120]
[359450374,1746024551616,-173.568834,0.00035695,2]
[359450375,1746024551639,-3000.0,0.00035972,60]
[359450376,1746024551663,-156.94,0.00036,7]
[359450377,1746024551717,500.0,0.00033575,5]
[359450378,1746024551909,500.0,0.00033575,5]
[359450379,1746024552840,193.09858075,0.00032577,2]
[359450380,1746024553555,193.09858075,0.00033065,2]
[359450381,1746024553929,644.07629193,0.00032102,2]
[359450384,1746024603802,173.568834,0.00035225,2]
[359450385,1746024607343,840.90604152,0.00033165,2]
[359450386,1746024609806,207.4,0.00035999,7]
[359450387,1746024610459,218.45211197,0.00035999,7]
[359450388,1746024628168,119.51928873,0.00035999,7]
[359450389,1746024628191,31.89204083,0.00035999,7]
[359450390,1746024629544,1600.0,0.00034328,60]
[359450391,1746024631151,1497.08397143,0.00034876,60]
[359450392,1746024631174,102.91602857,0.00034876,60]
[359450405,1746024632280,-160.0,0.00036167,4]
[359450406,1746024632290,-166.0,0.00036712,3]
[359450407,1746024632300,-500.0,0.00036903,7]
[359450408,1746024632310,-216.10651109,0.00036968,2]
[359450409,1746024632320,-316.0,0.00037,2]
[359450410,1746024632330,-5972.06522449,0.00037,5]
[359450411,1746024632342,-24781.18070816,0.00037,5]
[359450412,1746024632351,-644.07629193,0.00037102,2]
[359450413,1746024632362,-625.35762303,0.00037201,15]
[359450414,1746024632372,-403.0,0.00037202,2]
[359450415,1746024632383,-2245.0,0.00037202,2]
[359450416,1746024632392,-707.0,0.00037202,2]
[359450417,1746024632402,-216.10651103,0.00037412,2]
[359450418,1746024632412,-500.0,0.00037429,7]
[359450419,1746024632421,-500.0,0.00037507,7]
[359450420,1746024632432,-500.0,0.00037766,7]
[359450421,1746024632443,-500.0,0.00037817,7]
[359450422,1746024632453,-216.10651103,0.00037856,2]
[359450423,1746024632463,-5000.0,0.00038171,2]
[359450424,1746024632472,-153.6280621,0.00038172,4]
[359450425,1746024632483,-160.0,0.00038252,5]
[359450426,1746024632495,-500.0,0.00038273,5]
[359450427,1746024632506,-216.10651103,0.000383,2]
[359450428,1746024632518,-500.0,0.00038305,7]
[359450429,1746024632528,-500.0,0.00038327,7]
[359450430,1746024632540,-400.0,0.00038356,2]
[359450431,1746024632551,-400.0,0.00038356,2]
[359450432,1746024632561,-400.0,0.00038356,2]
[359450433,1746024632571,-272.84316796,0.00038356,2]
[359450434,1746024632731,1600.0,0.00035424,60]
[359450435,1746024634307,1567.35710296,0.00035972,60]
[359450436,1746024634330,32.64289704,0.00035972,60]
[359450444,1746024638123,-1600.0,0.0003652,60]
[359450445,1746024638133,-686.29673295,0.00037616,60]
[359450446,1746024638145,-913.70326705,0.00037616,60]
[359450447,1746024638155,-127.15683204,0.00038356,2]
[359450448,1746024638164,-400.0,0.00038356,2]
[359450449,1746024638173,-400.0,0.00038356,2]
[359450450,1746024638182,-400.0,0.00038356,2]
[359450451,1746024638191,-400.0,0.00038356,2]
[359450452,1746024638200,-400.0,0.00038356,2]
[359450453,1746024638209,-400.0,0.00038356,2]
[359450454,1746024638218,-400.0,0.00038356,2]
[359450455,1746024638227,-400.0,0.00038356,2]
[359450456,1746024638236,-328.70709221,0.00038356,2]
[359450457,1746024638248,-71.29290779,0.00038356,2]
[359450458,1746024638258,-161.96407117,0.00038356,2]
[359450459,1746024638267,-280.16719616,0.00038437,2]
[359450460,1746024638276,-627.91,0.000386,2]
[359450461,1746024638286,-2875.28307667,0.00038619,3]
[359450462,1746024638302,-4232.03581426,0.00038619,3]
[359450465,1746024638318,-255.83204123,0.00038619,3]
[359450467,1746024638330,-6796.06191914,0.00038619,3]
[359450469,1746024638339,-500.0,0.00038629,7]
[359450471,1746024638353,-216.10651103,0.00038743,2]
[359450473,1746024638364,-791.854438,0.00038933,2]
[359450475,1746024638373,-500.0,0.00038959,7]
[359450477,1746024638383,-2000.0,0.00039,120]
[359450479,1746024638392,-2000.0,0.00039,120]
[359450481,1746024638401,-2000.0,0.00039,120]
[359450483,1746024638411,-2000.0,0.00039,120]
[359450485,1746024638420,-2000.0,0.00039,120]
[359450487,1746024638430,-2000.0,0.00039,120]
[359450489,1746024638440,-2000.0,0.00039,120]
[359450491,1746024638450,-2000.0,0.00039,120]
[359450493,1746024638461,-2000.0,0.00039,120]
[359450496,1746024638470,-444.20089274,0.00039054,5]
[359450497,1746024638483,-1000.0,0.00039054,5]
[359450499,1746024638492,-216.10651103,0.00039187,2]
[359450502,1746024638504,-156.94,0.000393,7]
[359450503,1746024638516,-657.4520521,0.00039317,7]
[359450505,1746024638526,-160.0,0.00039452,18]
[359450507,1746024638536,-216.10651103,0.00039631,2]
[359450509,1746024638546,-290.39432574,0.00039665,2]
[359450512,1746024638557,-500.0,0.00039679,7]
[359450514,1746024638567,-14159.2128513,0.00039755,3]
[359450516,1746024638577,-300.92831776,0.0003976,2]
[359450518,1746024638586,-800.0,0.00039764,6]
[359450520,1746024638598,-788.77178456,0.00039764,31]
[359450522,1746024638608,-187.06139599,0.00039764,31]
[359450524,1746024638620,-500.0,0.00039764,31]
[359450526,1746024638629,-529.7771701,0.00039764,7]
[359450528,1746024638639,-500.0,0.00039764,31]
[359450530,1746024638648,-288.5902363,0.00039764,31]
[359450532,1746024638657,-215.6106742,0.00039764,31]
[359450534,1746024638666,-27753.45154752,0.00039765,2]
[359450536,1746024638676,-4010.71741723,0.00039765,2]
[359450538,1746024638685,-290.39432574,0.00039768,2]
[359450540,1746024638695,-500.94710656,0.00039773,5]
[359450542,1746024638704,-500.0,0.00039773,5]
[359450544,1746024638713,-290.39432574,0.0003987,2]
[359450546,1746024638722,-684.03,0.00039909,120]
[359450548,1746024638731,-290.39432574,0.00039973,2]
[359450550,1746024638741,-611.21663,0.00039999,4]
[359450552,1746024638750,-9178.90829474,0.0004,120]
[359450554,1746024638759,-500.0,0.0004,120]
[359450556,1746024638769,-500.0,0.0004,120]
[359450558,1746024638779,-1172.777,0.0004,120]
[359450560,1746024638788,-290.39432574,0.00040075,2]
[359450562,1746024638798,-167.09771443,0.00040075,120]
[359450564,1746024638807,-216.10651103,0.00040075,28]
[359450566,1746024638817,-243.49341231,0.000401,19]
[359450568,1746024638826,-684.03,0.00040109,120]
[359450570,1746024638836,-14159.2128513,0.00040146,3]
[359450572,1746024638845,-14159.2128513,0.00040154,3]
[359450574,1746024638854,-14159.2128513,0.00040163,3]
[359450576,1746024638867,-56636.8514052,0.00040165,3]
[359450578,1746024638876,-151.0,0.00040166,14]
[359450580,1746024638886,-151.0,0.00040166,14]
[359450582,1746024638895,-155.654734,0.00040166,14]
[359450584,1746024638905,-151.0,0.00040166,14]
[359450586,1746024638914,-156.390972,0.00040166,14]
[359450588,1746024638923,-151.0,0.00040166,14]
[359450590,1746024638933,-151.0,0.00040166,14]
[359450592,1746024638943,-151.0,0.00040166,2]
[359450594,1746024638953,-151.0,0.00040166,2]
[359450596,1746024638963,-221.769767,0.00040166,2]
[359450598,1746024638973,-151.0,0.00040166,14]
[359450600,1746024638982,-151.0,0.00040166,14]
[359450602,1746024638991,-1241.312692,0.00040166,2]
[359450604,1746024639001,-1241.312692,0.00040166,2]
[359450607,1746024639012,-155.245476,0.00040166,14]
[359450609,1746024639024,-155.245476,0.00040166,14]
[359450611,1746024639035,-155.245476,0.00040166,14]
[359450613,1746024639047,-155.245476,0.00040166,14]
[359450615,1746024639059,-531.14568577,0.00040171,15]
[359450618,1746024639070,-501.13803781,0.00040173,5]
[359450620,1746024639081,-500.0,0.00040173,5]
[359450622,1746024639093,-500.0,0.00040173,5]
[359450624,1746024639104,-150.0,0.00040173,5]
[359450626,1746024639117,-500.0,0.00040173,5]
[359450629,1746024639128,-404.71967358,0.00040173,3]
[359450631,1746024639138,-500.0,0.00040173,5]
[359450633,1746024639147,-500.0,0.00040173,5]
[359450635,1746024639157,-502.4923,0.00040173,5]
[359450637,1746024639168,-464.51731361,0.00040174,31]
[359450639,1746024639179,-407.4018619,0.00040174,7]
[359450642,1746024639189,-411.4929043,0.00040174,31]
[359450644,1746024639200,-212.61327652,0.00040174,31]
[359450646,1746024639210,-436.47659065,0.00040174,31]
[359450648,1746024639220,-500.0,0.00040174,7]
[359450650,1746024639231,-500.0,0.00040174,31]
[359450652,1746024639242,-500.0,0.00040174,7]
[359450655,1746024639253,-500.0,0.00040174,31]
[359450657,1746024639265,-500.0,0.00040174,31]
[359450659,1746024639276,-236.14673022,0.00040174,7]
[359450661,1746024639288,-500.0,0.00040174,31]
[359450663,1746024639299,-500.0,0.00040174,31]
[359450666,1746024639309,-169.75823981,0.00040174,31]
[359450668,1746024639320,-500.0,0.00040174,31]
[359450670,1746024639331,-340.04388469,0.00040174,31]
[359450672,1746024639342,-205116.24083364,0.00040175,2]
[359450674,1746024639353,-24485.45273028,0.00040175,3]
[359450676,1746024639366,-151.0,0.00040175,14]
[359450679,1746024639376,-151.0,0.00040175,14]
[359450681,1746024639388,-151.0,0.00040175,14]
[359450683,1746024639399,-151.0,0.00040175,14]
[359450685,1746024639410,-151.0,0.00040175,14]
[359450687,1746024639421,-151.0,0.00040175,14]
[359450690,1746024639431,-151.0,0.00040175,14]
[359450692,1746024639441,-151.0,0.00040175,14]
[359450694,1746024639452,-153.246383,0.00040175,14]
[359450696,1746024639462,-151.0,0.00040175,14]
[359450698,1746024639472,-151.0,0.00040175,14]
[359450700,1746024639484,-151.0,0.00040175,14]
[359450702,1746024639494,-151.0,0.00040175,14]
[359450704,1746024639506,-151.0,0.00040175,14]
[359450707,1746024639519,-151.0,0.00040175,14]
[359450709,1746024639530,-151.0,0.00040175,14]
[359450711,1746024639540,-151.0,0.00040175,14]
[359450713,1746024639552,-151.0,0.00040175,14]
[359450715,1746024639563,-151.0,0.00040175,14]
[359450717,1746024639574,-151.0,0.00040175,14]
[359450719,1746024639585,-151.0,0.00040175,14]
[359450721,1746024639596,-151.0,0.00040175,14]
[359450723,1746024639607,-151.0,0.00040175,14]
[359450725,1746024639617,-151.0,0.00040175,14]
[359450727,1746024639627,-151.0,0.00040175,14]
[359450730,1746024639638,-151.0,0.00040175,14]
[359450732,1746024639648,-151.0,0.00040175,14]
[359450734,1746024639657,-152.286119,0.00040175,14]
[359450736,1746024639667,-6071473.62697062,0.00040175,20]
[359450780,1746024640696,-696.81211903,0.00038712,60]
[359450782,1746024640768,-700.2151947,0.00038712,60]
[359450783,1746024640780,-202.97268627,0.00038712,60]
[359450784,1746024640793,-349.817378,0.00040175,14]
[359450785,1746024640805,-349.817378,0.00040175,14]
[359450786,1746024640816,-10343.72791923,0.00040175,20]
[359450787,1746024640830,-4315.0,0.00040175,20]
[359450788,1746024640844,-1457.80384337,0.00040175,20]
[359450808,1746024643400,-1600.0,0.00039808,60]
[359450809,1746024643410,-1297.779594,0.0004,32]
[359450810,1746024643421,-173.502964,0.00040175,14]
[359450811,1746024643431,-349.817378,0.00040175,14]
[359450812,1746024643441,-173.502964,0.00040175,14]
[359450813,1746024643451,-1964.44747223,0.00040175,20]
[359450814,1746024643463,-126151.56455697,0.00040175,20]
[359450815,1746024643495,-9499.9087411,0.00040175,20]
[359450841,1746024647257,-349.817378,0.00040175,14]
[359450842,1746024647423,-7829.405396,0.00040175,20]
[359450843,1746024647437,-8959.1389468,0.00040175,20]
[359450844,1746024647449,-14749.9999995,0.00040175,20]
[359450845,1746024647461,-92397.98545345,0.00040175,20]
[359450846,1746024647472,-4856.4870682,0.00040175,20]
[359450847,1746024649074,271.712,0.00031202,2]
[359450848,1746024686578,400.0,0.00034875,2]
[359450849,1746024686784,400.0,0.00035149,2]
[359450850,1746024688530,500.0,0.00034875,2]
[359450852,1746024699793,69.91612264,0.00034875,2]
[359450853,1746024699816,2113.73387736,0.00034875,2]
[359450854,1746024704342,155.0,0.00035472,2]
[359450855,1746024718386,400.0,0.00034875,2]
[359450856,1746024718722,400.0,0.00035149,2]
[359450857,1746024718955,207.94099954,0.00035423,2]
[359450858,1746024718978,192.05900046,0.00035423,2]
[359450859,1746024719427,411.3777108,0.00035697,2]
[359450860,1746024725151,400.0,0.00034875,2]
[359450861,1746024725385,195.32658617,0.00035149,2]
[359450862,1746024725409,204.67341383,0.00035149,2]
[359450863,1746024725617,400.0,0.00035423,2]
[359450864,1746024725849,400.0,0.00035697,2]
[359450865,1746024727369,400.0,0.00027397,2]
[359450866,1746024727667,400.0,0.00027671,2]
[359450867,1746024727898,321.99075492,0.00027945,2]
[359450868,1746024729622,400.0,0.00034875,2]
[359450869,1746024729883,400.0,0.00035149,2]
[359450870,1746024730130,400.0,0.00035423,2]
[359450871,1746024730404,400.0,0.00035697,2]
[359450872,1746024743692,400.0,0.00027397,2]
[359450873,1746024743928,456.34978076,0.00027671,2]
[359450928,1746025625203,-445.79392755,0.0002724,10]
[359450929,1746025640093,-753.78544397,0.0002724,10]
[359450930,1746025640154,-822.88582069,0.0002724,10]
[359450933,1746025652077,-2.15006887,0.0002724,10]
[359450934,1746025652098,-157.76832993,0.00027297,2]
[359450935,1746025652118,-504.24789912,0.00027397,2]
[359450936,1746025652140,-764.318588,0.00027397,2]
[359450937,1746025652160,-651.469322,0.00027671,2]
[359450938,1746025652179,-736.38695287,0.00027693,2]
[359450939,1746025652200,-400.0,0.00031201,2]
[359450940,1746025652222,-707.0,0.00031202,2]
[359450941,1746025652242,-1125.15368239,0.00031202,2]
[359450943,1746025745125,-1119.84631761,0.00031202,2]
[359450944,1746025745146,-157.76832993,0.00033065,2]
[359450945,1746025745167,-764.318588,0.00033165,2]
[359450946,1746025745186,-229.0,0.00033425,3]
[359450947,1746025745206,-157.45,0.00033586,2]
[359450948,1746025745228,-261.7855456,0.00034081,2]
[359450949,1746025745249,-353.357,0.00034202,2]
[359450950,1746025745269,-356.62277822,0.00035068,2]
[359450951,1746025745289,-278.082746,0.00035422,2]
[359450952,1746025745314,-809.2758412,0.00035855,2]
[359450953,1746025760251,1948.41103634,0.00032968,2]
[359450954,1746025772719,161.0,0.00036164,3]
[359450955,1746025773057,159.0,0.00027397,3]
[359450977,1746025832244,-500.0,0.00036441,7]
[359450978,1746025832254,-460.05583154,0.00036454,7]
[359450979,1746025832266,-39.94416846,0.00036454,7]
[359450980,1746025832277,-900.0,0.0003652,60]
[359450981,1746025832287,-500.0,0.00036628,7]
[359450982,1746025832297,-500.0,0.00036647,7]
[359450983,1746025832306,-500.0,0.00036691,7]
[359450984,1746025832316,-500.0,0.00036733,7]
[359450985,1746025832326,-500.0,0.00036748,7]
[359450986,1746025832335,-500.0,0.00036814,7]
[359450987,1746025832344,-320.0,0.00036846,2]
[359450988,1746025832355,-500.0,0.00036847,7]
[359450989,1746025832364,-182.04053198,0.00036905,2]
[359450990,1746025832374,-160.0,0.00036993,2]
[359450991,1746025832383,-900.0,0.00037068,60]
[359450992,1746025832393,-187.403,0.00037118,47]
[359450993,1746025832402,-500.0,0.00037469,7]
[359450994,1746025832412,-900.0,0.00037616,60]
[359450995,1746025832422,-1280.29126886,0.00037968,2]
[359450996,1746025832434,-668.11976748,0.00037968,2]
[359450997,1746025832444,-500.0,0.0003806,7]
[359450998,1746025832455,-5661.9904621,0.00038075,15]
[359450999,1746025832464,-500.0,0.00038152,7]
[359451000,1746025832473,-900.0,0.00038164,60]
[359451001,1746025832483,-200.0,0.00038178,14]
[359451002,1746025832493,-500.0,0.00038206,15]
[359451003,1746025832503,-270.0,0.00038206,15]
[359451004,1746025832513,-500.0,0.00038206,15]
[359451005,1746025832523,-264.69487118,0.00038206,15]
[359451006,1746025832533,-500.0,0.00038206,15]
[359451007,1746025832542,-425.37637199,0.00038206,15]
[359451008,1746025832552,-500.0,0.00038207,7]
[359451009,1746025832561,-200.0,0.00038267,14]
[359451010,1746025832571,-200.0,0.00038267,14]
[359451011,1746025832581,-200.0,0.00038267,14]
[359451012,1746025832590,-202.13325825,0.00038267,14]
[359451013,1746025832600,-13791.0553047,0.00038346,3]
[359451014,1746025832609,-200.70394133,0.00038346,3]
[359451015,1746025832619,-160.0,0.00038346,3]
[359451016,1746025832628,-160.0,0.00038346,3]
[359451017,1746025832641,-182.04053198,0.00038346,3]
[359451018,1746025832653,-187.06139599,0.00038355,15]
[359451019,1746025832665,-500.0,0.00038355,7]
[359451020,1746025832678,-500.0,0.00038355,15]
[359451021,1746025832689,-187.80677231,0.00038355,15]
[359451022,1746025832701,-568.92476696,0.00038355,15]
[359451023,1746025832712,-160.28783387,0.00038355,7]
[359451024,1746025832723,-400.0,0.00038356,12]
[359451025,1746025832733,-400.0,0.00038356,12]
[359451026,1746025832743,-400.0,0.00038356,12]
[359451027,1746025832754,-400.0,0.00038356,12]
[359451028,1746025832767,-400.0,0.00038356,12]
[359451029,1746025832779,-400.0,0.00038356,12]
[359451030,1746025832791,-400.0,0.00038356,12]
[359451031,1746025832802,-158.10979935,0.00038356,12]
[359451032,1746025832813,-400.0,0.00038356,12]
[359451033,1746025832825,-505.45374057,0.00038356,12]
[359451034,1746025832835,-217.41697661,0.00038356,12]
[359451035,1746025832847,-400.0,0.00038356,12]
[359451036,1746025832861,-502.82189837,0.00038356,12]
[359451037,1746025832872,-400.0,0.00038356,12]
[359451038,1746025832885,-501.88796839,0.00038356,12]
[359451039,1746025832897,-500.67445865,0.00038356,12]
[359451040,1746025832908,-400.0,0.00038356,2]
[359451041,1746025832920,-400.0,0.00038356,2]
[359451042,1746025832933,-503.84918272,0.00038356,7]
[359451043,1746025832945,-400.0,0.00038356,12]
[359451044,1746025832956,-400.0,0.00038356,12]
[359451045,1746025832967,-400.0,0.00038356,12]
[359451046,1746025832978,-400.0,0.00038356,12]
[359451047,1746025832989,-519.5740678,0.00038356,12]
[359451048,1746025833000,-401.53,0.00038356,12]
[359451049,1746025833010,-401.53,0.00038356,12]
[359451050,1746025833021,-401.53,0.00038356,12]
[359451051,1746025833032,-400.0,0.00038356,12]
[359451052,1746025833043,-400.0,0.00038356,12]
[359451053,1746025833055,-411.61426084,0.00038356,12]
[359451054,1746025833066,-400.0,0.00038356,12]
[359451055,1746025833076,-400.0,0.00038356,12]
[359451056,1746025833087,-400.0,0.00038356,12]
[359451057,1746025833099,-400.0,0.00038356,12]
[359451058,1746025833110,-400.0,0.00038356,12]
[359451059,1746025833122,-400.0,0.00038356,12]
[359451060,1746025833136,-400.0,0.00038356,12]
[359451061,1746025833147,-400.0,0.00038356,12]
[359451062,1746025833158,-400.0,0.00038356,12]
[359451063,1746025833169,-400.0,0.00038356,12]
[359451064,1746025833181,-400.0,0.00038356,12]
[359451065,1746025833192,-400.0,0.00038356,12]
[359451066,1746025833204,-400.0,0.00038356,12]
[359451067,1746025833214,-400.0,0.00038356,12]
[359451068,1746025833225,-400.0,0.00038356,12]
[359451069,1746025833236,-400.0,0.00038356,12]
[359451070,1746025833246,-400.0,0.00038356,12]
[359451071,1746025833258,-400.0,0.00038356,12]
[359451072,1746025833270,-400.0,0.00038356,12]
[359451073,1746025833281,-400.0,0.00038356,12]
[359451074,1746025833293,-400.0,0.00038356,12]
[359451075,1746025833304,-400.0,0.00038356,12]
[359451076,1746025833316,-400.0,0.00038356,12]
[359451077,1746025833328,-400.0,0.00038356,12]
[359451078,1746025833339,-400.0,0.00038356,12]
[359451079,1746025833351,-400.0,0.00038356,12]
[359451080,1746025833363,-400.0,0.00038356,12]
[359451081,1746025833375,-400.0,0.00038356,12]
[359451082,1746025833393,-400.0,0.00038356,12]
[359451083,1746025833406,-400.0,0.00038356,12]
[359451084,1746025833418,-400.0,0.00038356,12]
[359451085,1746025833431,-400.0,0.00038356,12]
[359451086,1746025833444,-400.0,0.00038356,12]
[359451087,1746025833455,-400.0,0.00038356,12]
[359451088,1746025833467,-400.0,0.00038356,12]
[359451089,1746025833481,-400.0,0.00038356,12]
[359451090,1746025833493,-400.0,0.00038356,12]
[359451091,1746025833504,-400.0,0.00038356,12]
[359451092,1746025833515,-400.0,0.00038356,12]
[359451093,1746025833526,-500.0,0.00038356,12]
[359451094,1746025833536,-500.0,0.00038356,12]
[359451095,1746025833546,-505.29996677,0.00038356,12]
[359451096,1746025833556,-400.0,0.00038356,12]
[359451097,1746025833567,-400.0,0.00038356,12]
[359451098,1746025833577,-400.0,0.00038356,12]
[359451099,1746025833588,-500.0,0.00038356,12]
[359451100,1746025833600,-500.0,0.00038356,12]
[359451101,1746025833612,-500.0,0.00038356,12]
[359451102,1746025833625,-497.19,0.00038356,12]
[359451103,1746025833639,-497.19,0.00038356,12]
[359451104,1746025833651,-497.19,0.00038356,12]
[359451105,1746025833663,-400.0,0.00038356,12]
[359451106,1746025833674,-400.0,0.00038356,12]
[359451107,1746025833684,-400.0,0.00038356,12]
[359451108,1746025833694,-400.0,0.00038356,12]
[359451109,1746025833704,-400.0,0.00038356,12]
[359451110,1746025833715,-400.0,0.00038356,12]
[359451111,1746025833727,-400.0,0.00038356,12]
[359451112,1746025833738,-400.0,0.00038356,12]
[359451113,1746025833748,-400.0,0.00038356,12]
[359451114,1746025833759,-798.19,0.00038356,12]
[359451115,1746025833770,-798.19,0.00038356,12]
[359451116,1746025833781,-798.19,0.00038356,12]
[359451117,1746025833792,-400.0,0.00038356,12]
[359451118,1746025833804,-400.0,0.00038356,12]
[359451119,1746025833815,-300.16511552,0.00038356,12]
[359451120,1746025833826,-400.0,0.00038356,12]
[359451121,1746025833837,-400.0,0.00038356,12]
[359451122,1746025833850,-400.0,0.00038356,12]
[359451123,1746025833868,-400.0,0.00038356,12]
[359451124,1746025833879,-400.0,0.00038356,12]
[359451125,1746025833895,-400.0,0.00038356,12]
[359451126,1746025833907,-400.0,0.00038356,12]
[359451127,1746025833917,-730.58,0.00038356,12]
[359451128,1746025833930,-730.58,0.00038356,12]
[359451129,1746025833942,-730.58,0.00038356,12]
[359451130,1746025833953,-500.0,0.00038356,12]
[359451131,1746025833964,-297.29018855,0.00038356,12]
[359451132,1746025833976,-2092.67,0.00038356,12]
[359451133,1746025833986,-2092.67,0.00038356,12]
[359451134,1746025833997,-2092.67,0.00038356,12]
[359451135,1746025834007,-2092.67,0.00038356,12]
[359451136,1746025834018,-2092.67,0.00038356,12]
[359451137,1746025834028,-400.0,0.00038356,12]
[359451138,1746025834038,-400.0,0.00038356,12]
[359451139,1746025834049,-400.0,0.00038356,12]
[359451140,1746025834060,-400.0,0.00038356,12]
[359451141,1746025834070,-400.0,0.00038356,12]
[359451142,1746025834081,-400.0,0.00038356,12]
[359451143,1746025834093,-461.32134305,0.00038356,12]
[359451144,1746025834103,-504.50639216,0.00038356,12]
[359451145,1746025834114,-400.0,0.00038356,12]
[359451146,1746025834124,-400.0,0.00038356,12]
[359451147,1746025834137,-400.0,0.00038356,12]
[359451148,1746025834147,-165.05362001,0.00038356,12]
[359451149,1746025834158,-501.02218168,0.00038356,12]
[359451150,1746025834168,-400.0,0.00038356,12]
[359451151,1746025834179,-400.0,0.00038356,12]
[359451152,1746025834189,-400.0,0.00038356,12]
[359451153,1746025834199,-400.0,0.00038356,12]
[359451154,1746025834209,-400.0,0.00038356,12]
[359451155,1746025834220,-400.0,0.00038356,12]
[359451156,1746025834230,-400.0,0.00038356,12]
[359451157,1746025834241,-381.38,0.00038356,12]
[359451158,1746025834252,-400.0,0.00038356,12]
[359451159,1746025834262,-400.0,0.00038356,12]
[359451160,1746025834275,-400.0,0.00038356,12]
[359451161,1746025834286,-400.0,0.00038356,12]
[359451162,1746025834297,-400.0,0.00038356,12]
[359451163,1746025834307,-400.0,0.00038356,12]
[359451164,1746025834318,-400.0,0.00038356,12]
[359451165,1746025834329,-400.0,0.00038356,12]
[359451166,1746025834340,-400.0,0.00038356,12]
[359451167,1746025834351,-400.0,0.00038356,12]
[359451168,1746025834362,-400.0,0.00038356,12]
[359451169,1746025834372,-400.0,0.00038356,12]
[359451170,1746025834384,-400.0,0.00038356,12]
[359451171,1746025834396,-400.0,0.00038356,12]
[359451172,1746025834407,-400.0,0.00038356,12]
[359451173,1746025834418,-400.0,0.00038356,12]
[359451174,1746025834429,-400.0,0.00038356,12]
[359451175,1746025834439,-400.0,0.00038356,12]
[359451176,1746025834450,-400.0,0.00038356,12]
[359451177,1746025834460,-400.0,0.00038356,12]
[359451178,1746025834471,-400.0,0.00038356,12]
[359451179,1746025834657,-400.0,0.00038356,12]
[359451180,1746025834667,-400.0,0.00038356,12]
[359451181,1746025834677,-304.73752767,0.00038356,12]
[359451182,1746025834687,-400.0,0.00038356,12]
[359451183,1746025834697,-400.0,0.00038356,12]
[359451184,1746025834706,-400.0,0.00038356,12]
[359451185,1746025834716,-400.0,0.00038356,12]
[359451186,1746025834726,-400.0,0.00038356,12]
[359451187,1746025834735,-400.0,0.00038356,12]
[359451188,1746025834745,-400.0,0.00038356,12]
[359451189,1746025834754,-400.0,0.00038356,12]
[359451190,1746025834765,-400.0,0.00038356,12]
[359451191,1746025834775,-400.0,0.00038356,12]
[359451192,1746025834784,-400.0,0.00038356,12]
[359451193,1746025834794,-400.0,0.00038356,12]
[359451194,1746025834804,-400.0,0.00038356,12]
[359451195,1746025834814,-400.0,0.00038356,12]
[359451196,1746025834824,-400.0,0.00038356,12]